Workbook

Sheet ورقة1
B2: المركز التسويقي لمنتسبي وزارة الداخلية
F6: =SUBTOTAL(9,B:B) -> 48008426 | H6: =SUBTOTAL(9,D:D) -> 474952.5
A10: الاسم الكامل | B10: المبلغ الكلي | C10: المبلغ المتبقي | D10: الاستقطاع الشهري | E10: عدد الأشهر | F10: الدائرة | G10: التاريخ | H10: القسط الأول | I10: القسط الثاني
A11: عزيز حامد عبد الباقي عبد العزيز | B11: 5000 | C11: =B11-J11*D11 -> 4500 | D11: 500 | E11: 11 | F11: مديرية حماية المنشات | H11: تم التسديد | J11: =COUNTIF(H11:I11,"تم التسديد") -> 1
A12: حسين جبار لعيبي خلف | B12: 660000 | C12: =B12-J12*D12 -> 660000 | D12: 110 | E12: 6 | F12: حرس الحدود | J12: =COUNTIF(H12:I12,"تم التسديد") -> 0
A13: ثائر عباس عزيز علي | B13: 1500000 | C13: 1500000 | D13: 150 | E13: 10 | F13: الشرطة الاتحادية ف2 | J13: 0
A14: زهير ناصر هادي كاظم | B14: 3000 | C14: 3000 | D14: 300 | E14: 10 | F14: الشرطة الاتحادية فوج المغاوير | J14: 0
A15: خالد فاضل علي ديوان الاسدي | B15: 175000 | C15: 175000 | D15: 44 | E15: 4 | F15: الشرطة الاتحادية فق 1 | J15: 0
A16: حسين صالح سويد محمد العبسي | B16: 175000 | C16: 175000 | D16: 44 | E16: 4 | F16: الشرطة الاتحادية فق1 الفوج الالي | J16: 0
A17: زهير ناصر هادي كاظم | B17: 1500 | C17: 1500 | D17: 150 | E17: 10 | F17: الشرطة الاتحادية فوج المغاوير | J17: 0
A18: مجدي عباس فاضل عباس | B18: 1540000 | C18: 1540000 | D18: 220 | E18: 7 | F18: الشرطة الاتحادية ل 3 ف3 | J18: 0
A19: حسين جبار لعيبي خلف | B19: 700000 | C19: 700000 | D19: 100 | E19: 7 | F19: حرس الحدود | J19: 0
A20: حسين جبار لعيبي خلف | B20: 175000 | C20: 175000 | D20: 44 | E20: 4 | F20: حرس الحدود | J20: 0
A21: سعد عزيز حمودي كاظم السعيدي | B21: 1500000 | C21: 1500000 | D21: 150 | E21: 10 | F21: مديرية شؤون السيطرات | J21: 0
A22: سعد عزيز حمودي كاظم السعيدي | B22: 800000 | C22: 800000 | D22: 100 | E22: 8 | F22: مديرية شؤون السيطرات | J22: 0
A23: نصير صادق جعفر عوده علي | B23: 300000 | C23: 300000 | D23: 50 | E23: 6 | F23: الشرطة الاتحادية فق 6 | J23: 0
A24: نصير صادق جعفر عوده علي | B24: 250000 | C24: 250000 | D24: 50 | E24: 5 | F24: الشرطة الاتحادية فق 6 | J24: 0
A25: محمد مهدي سليم حسين الزيداوي | B25: 3000000 | C25: 3000000 | D25: 300 | E25: 10 | F25: حماية المنشأت | J25: 0
A26: بشير سلمان شكاصي | B26: 3000000 | C26: 3000000 | D26: 300 | E26: 10 | F26: حماية المنشأت | J26: 0
A27: علي اسماعيل عبد الحسن | B27: 770000 | C27: 770000 | D27: 110 | E27: 7 | F27: حرس الحدود | J27: 0
A28: حيدر محمد رشيد محمد | B28: 900000 | C28: 900000 | D28: 100 | E28: 9 | F28: حرس الحدود | J28: 0
A29: حسين علي حسين غضبان | B29: 250 | C29: 200 | D29: 50 | E29: 6 | F29: مديرية الإدارة والميرة ش.أ | H29: تم التسديد | J29: 1
A30: نصير صادق جعفر عوده علي | B30: 3600000 | C30: 3600000 | D30: 400 | E30: 9 | F30: الشرطة الاتحادية فق 6 | J30: 0
A31: علاء ستار شاوي حمود | B31: 440000 | C31: 439780 | D31: 110 | E31: 7 | F31: مديرية شرطة النجدة | H31: تم التسديد | I31: تم التسديد | J31: 2
A32: علاء ستار شاوي حمود | B32: 200000 | C32: 199800 | D32: 100 | E32: 5 | F32: مديرية شرطة النجدة | H32: تم التسديد | I32: تم التسديد | J32: 2
A33: عبدالرزاق مطرود زناد سعيد | B33: 180000 | C33: 180000 | D33: 45 | E33: 4 | F33: الشرطة الاتحادية فق 1 ل3 ف 2 | J33: 0
A34: محمد سعدي عبد الرسول نجم | B34: 1750000 | C34: 1750000 | D34: 175 | E34: 10 | F34: الشرطة الاتحادية ل 8 ف 2 | J34: 0
A35: محمد سعدي عبد الرسول نجم | B35: 600000 | C35: 600000 | D35: 100 | E35: 6 | F35: الشرطة الاتحادية ل 8 ف 2 | J35: 0
A36: سيف جعفر جبار عبد رمضان | B36: 600000 | C36: 600000 | D36: 100 | E36: 6 | F36: الشرطة الاتحادية فق 1 ل2 ف 2 | J36: 0
A37: اكرم عباس حسين راضي | B37: 600000 | C37: 600000 | D37: 100 | E37: 6 | F37: الشرطة الاتحادية فق2 ف2 | J37: 0
A38: احمد محمد زوبري حمد | B38: 2700 | C38: 2400 | D38: 300 | E38: 10 | F38: حماية المنشأت | H38: تم التسديد | J38: 1
A39: احمد محمد زوبري حمد | B39: 450 | C39: 350 | D39: 100 | E39: 6 | F39: حماية المنشأت | H39: تم التسديد | J39: 1
A40: محمد عبدالقادر خماس إبراهيم | B40: 1500000 | C40: 1500000 | D40: 150 | E40: 10 | F40: الشرطة الاتحادية الدعم اللوجستي | J40: 0
A41: اياد كايت رحمن عبد | B41: 900 | C41: 900 | D41: 100 | E41: 9 | F41: الشرطة الاتحادية فق1 ل 3 ف 3 | J41: 0
A42: اياد كايت رحمن عبد | B42: 180 | C42: 180 | D42: 45 | E42: 4 | F42: الشرطة الاتحادية فق1 ل 3 ف 3 | J42: 0
A43: حيدر علي عبد غافل التميمي | B43: 2975 | C43: 2625 | D43: 350 | E43: 10 | F43: حماية المنشأت | H43: تم التسديد | J43: 1
A44: رفعت عيسى حبيب جاسم | B44: 900000 | C44: 900000 | D44: 100 | E44: 9 | F44: الشرطة الاتحادية مقر القيادة | J44: 0
A45: محمد عبد الكريم خلف فرج | B45: 1500000 | C45: 1500000 | D45: 150 | E45: 10 | F45: الشرطة الاتحادية مقر قيادة الاعلام | J45: 0
A46: محمد عبد الكريم خلف فرج | B46: 900000 | C46: 900000 | D46: 100 | E46: 9 | F46: الشرطة الاتحادية مقر قيادة الاعلام | J46: 0
A47: محمد عبد الكريم خلف فرج | B47: 180000 | C47: 180000 | D47: 45 | E47: 4 | F47: الشرطة الاتحادية مقر قيادة الاعلام | J47: 0
A48: محمد عبد الكريم خلف فرج | B48: 250000 | C48: 250000 | D48: 50 | E48: 5 | F48: الشرطة الاتحادية مقر قيادة الاعلام | J48: 0
A49: ماهر كريم عبد الزهرة رحيمة | B49: 5250000 | C49: 5250000 | D49: 525 | E49: 10 | F49: شرطة اتحادية النسور | J49: 0
A50: باسم محمد كرم عزيز | B50: 700000 | C50: 700000 | D50: 100 | E50: 7 | F50: الشرطة الاتحادية فق1 ل2 ف 1 | J50: 0
A51: باسم محمد كرم عزيز | B51: 600000 | C51: 600000 | D51: 100 | E51: 6 | F51: الشرطة الاتحادية فق1 ل2 ف 1 | J51: 0
A52: كرار حسن عبد مسلم الربيعي | B52: 600000 | C52: 600000 | D52: 100 | E52: 6 | F52: عمليات الوزارة | J52: 0
A53: كرار حسن عبد مسلم الربيعي | B53: 450000 | C53: 450000 | D53: 90 | E53: 5 | F53: عمليات الوزارة | J53: 0
A54: عزيز حامد عبد الباقي عبد العزيز | B54: 510 | C54: 410 | D54: 100 | E54: 7 | F54: مديرية حماية المنشات | H54: تم التسديد | J54: 1
A55: فريد مجيد احمد حسين | B55: 900000 | C55: 900000 | D55: 180 | E55: 5 | F55: الشرطة الاتحادية ف 1 | J55: 0
A56: عقبة مطلك بدر لازم الساعدي | B56: 2400 | C56: 2100 | D56: 300 | E56: 10 | F56: مديرية حماية السفارات | H56: تم التسديد | J56: 1
A57: عقبة مطلك بدر لازم الساعدي | B57: 270 | C57: 180 | D57: 90 | E57: 5 | F57: مديرية حماية السفارات | H57: تم التسديد | J57: 1
A58: عقبة مطلك بدر لازم الساعدي | B58: 50 | C58: 0 | D58: 50 | E58: 6 | F58: مديرية حماية السفارات | H58: تم التسديد | J58: 1
A59: عقبة مطلك بدر لازم الساعدي | B59: 150 | C59: 100 | D59: 50 | E59: 5 | F59: مديرية حماية السفارات | H59: تم التسديد | J59: 1
A60: علي حسين زيدان مطلك الجابري | B60: 4500000 | C60: 4500000 | D60: 500 | E60: 9 | F60: فوج طوارئ بغداد | J60: 0
A61: حيدر رحيم حسين كاظم العامري | B61: 1275 | C61: 1125 | D61: 150 | E61: 10 | F61: مديرية حماية المنشات | H61: تم التسديد | J61: 1
A62: حيدر رحيم حسين كاظم العامري | B62: 750 | C62: 650 | D62: 100 | E62: 9 | F62: مديرية حماية المنشات | H62: تم التسديد | J62: 1
A63: علي شهيد غانم بريسم البلحاوي | B63: 1275 | C63: 1125 | D63: 150 | E63: 10 | F63: مديرية حماية المنشات | H63: تم التسديد | J63: 1
A64: علي شهيد غانم بريسم البلحاوي | B64: 750 | C64: 650 | D64: 100 | E64: 9 | F64: مديرية حماية المنشات | H64: تم التسديد | J64: 1
A65: علي شهيد غانم بريسم البلحاوي | B65: 225 | C65: 175 | D65: 50 | E65: 6 | F65: مديرية حماية المنشات | H65: تم التسديد | J65: 1
A66: ابراهيم محمد شوكت عبد الحميد | B66: 1275 | C66: 1125 | D66: 150 | E66: 10 | F66: مديرية حماية المنشات | H66: تم التسديد | J66: 1
A67: ابراهيم محمد شوكت عبد الحميد | B67: 750 | C67: 650 | D67: 100 | E67: 9 | F67: مديرية حماية المنشات | H67: تم التسديد | J67: 1
A68: وسام علي إبراهيم حمود | B68: 2250 | C68: 1950 | D68: 300 | E68: 9 | F68: حماية المنشات والشخصيات | H68: تم التسديد | J68: 1
A69: عماد موحي حسن هوزي | B69: 900000 | C69: 900000 | D69: 100 | E69: 9 | F69: حماية السفارات | J69: 0
A70: عقيل ستار شاوي حمود الساعدي | B70: 400000 | C70: 399800 | D70: 100 | E70: 7 | F70: مديرية شرطة النجدة | H70: تم التسديد | I70: تم التسديد | J70: 2
A71: فواز موفق شرقي رزوقي | B71: 700000 | C71: 700000 | D71: 100 | E71: 7 | F71: الشرطة الاتحادية اللواء الالي | J71: 0
A72: حيدر هادي سلمان عبد الرزاق | B72: 700000 | C72: 700000 | D72: 100 | E72: 7 | F72: مديرية شرطة ديالى | J72: 0
A73: علي حسن عبود جارالله الخفاجي | B73: 3500 | C73: 3500 | D73: 350 | E73: 10 | F73: قيادة شرطة بغداد | J73: 0
A74: طاهر عطاء تقي عبود السراي | B74: 550 | C74: 330 | D74: 110 | E74: 7 | F74: شرطة اتحادية فق 1 | H74: تم التسديد | I74: تم التسديد | J74: 2
A75: خليل إبراهيم جخيور علي فرحان | B75: 600 | C75: 200 | D75: 400 | E75: 9 | F75: حماية الشخصيات | H75: تم التسديد | J75: 1
A76: خليل إبراهيم جخيور علي فرحان | B76: 550 | C76: =B76-J76*D76 -> 450 | D76: 100 | E76: 7 | F76: حماية الشخصيات | H76: تم التسديد | J76: =COUNTIF(H76:I76,"تم التسديد") -> 1
A77: محمد مهدي سليم حسين | B77: 1540 | C77: 1540 | D77: 220 | E77: 7 | F77: حماية الشخصيات | J77: 0
A78: سيف سعدي عبد جاسم | B78: 900 | C78: 900 | D78: 100 | E78: 9 | F78: مكتب الوزير التدقيق المركزي | J78: 0
A79: سيف سعدي عبد جاسم | B79: 500 | C79: 500 | D79: 100 | E79: 5 | F79: مكتب الوزير التدقيق المركزي | J79: 0
A80: حسين جبار لعيبي خلف | B80: 1000 | C80: 1000 | D80: 200 | E80: 5 | F80: حرس الحدود | J80: 0
A81: حيدر محمد كاظم حسن العامري | B81: 3000 | C81: 3000 | D81: 300 | E81: 10 | F81: حماية المنشأت | J81: 0
A82: عزيز عبدالحمزة عزيز محمد | B82: 4500 | C82: 4500 | D82: 410 | E82: 11 | F82: فوج طوارئ بغداد | J82: 0
A83: سعد عبدالرزاق مجيد حبيب | B83: 750 | C83: 750 | D83: 150 | E83: 5 | F83: حماية المنشأت | J83: 0
A84: سعد عبدالرزاق مجيد حبيب | B84: 700 | C84: 700 | D84: 100 | E84: 7 | F84: حماية المنشأت | J84: 0
A85: سعد عبدالرزاق مجيد حبيب | B85: 180 | C85: 180 | D85: 45 | E85: 4 | F85: حماية المنشأت | J85: 0
A86: احمد حسين جلوب دلي اللامي | B86: 1200 | C86: 1200 | D86: 200 | E86: 6 | F86: الشرطة الاتحادية القيادة | J86: 0
A87: محمد عبد الزهرة محيسن حلو | B87: 450 | C87: 350 | D87: 100 | E87: 6 | F87: حماية المنشأت | H87: تم التسديد | J87: 1
A88: علي عبد العزيز فليح حسن | B88: 1000 | C88: 1000 | D88: 200 | E88: 5 | F88: الشرطة الاتحادية فق 6 | J88: 0
A89: فراس علي حسين علي العبيدي | B89: 1500 | C89: 1500 | D89: 150 | E89: 10 | F89: قيادة شرطة صلاح الدين | J89: 0
A90: فراس علي حسين علي العبيدي | B90: 770 | C90: 770 | D90: 110 | E90: 7 | F90: قيادة شرطة صلاح الدين | J90: 0
A91: فراس علي حسين علي العبيدي | B91: 500 | C91: 500 | D91: 100 | E91: 5 | F91: قيادة شرطة صلاح الدين | J91: 0
A92: فراس علي حسين علي العبيدي | B92: 770 | C92: 770 | D92: 110 | E92: 7 | F92: قيادة شرطة صلاح الدين | J92: 0
A93: صالح خلف حمود جليهم | B93: 4500 | C93: 4500 | D93: 450 | E93: 10 | F93: الشرطة الاتحادية مقر القيادة | J93: 0
A94: علي شرقي جبر حسن اللامي | B94: 3000 | C94: 3000 | D94: 300 | E94: 10 | F94: قيادة شرطة بغداد شؤون السيطرات | J94: 0
A95: عباس علي عويلي برهان | B95: 600 | C95: 600 | D95: 100 | E95: 6 | F95: الشرطة الاتحادية فق 6 | J95: 0
A96: حسام خزعل فيصل عبود | B96: 4500 | C96: 4500 | D96: 450 | E96: 10 | F96: فوج طوارئ بغداد | J96: 0
A97: صدام فاضل قاسم | B97: 3150 | C97: 3150 | D97: 350 | E97: 10 | F97: حرس الحدود | J97: 0
A98: علي مهدي رحيمه فهد | B98: 3500 | C98: 3500 | D98: 350 | E98: 10 | F98: الشرطة الاتحادية فق1 | J98: 0
A99: علي مهدي رحيمه فهد | B99: 700 | C99: 700 | D99: 100 | E99: 7 | F99: الشرطة الاتحادية فق1 | J99: 0
A100: سعد عزيز حمودي كاظم السعيدي | B100: 1750 | C100: 1750 | D100: 175 | E100: 10 | F100: شؤن السيطرات | J100: 0
A101: سعد عزيز حمودي كاظم السعيدي | B101: 600 | C101: 600 | D101: 100 | E101: 6 | F101: شؤن السيطرات | J101: 0
A102: احمد كنكر مجور ساري | B102: 3500 | C102: 3500 | D102: 350 | E102: 10 | F102: الشرطة الاتحادية فق 1 | J102: 0
A103: فريد مجيد احمد حسين | B103: 1750 | C103: 1750 | D103: 175 | E103: 10 | F103: الشرطة الاتحادية فوج المغاوير | J103: 0
A104: حسين موسى عبد المهدي | B104: 1750 | C104: 1750 | D104: 175 | E104: 10 | F104: وكالة شؤون الشرطة | J104: 0
A105: حسين موسى عبد المهدي | B105: 1750 | C105: 1750 | D105: 175 | E105: 10 | F105: وكالة شؤون الشرطة | J105: 0
A106: حسين موسى عبد المهدي | B106: 1750 | C106: 1750 | D106: 175 | E106: 10 | F106: وكالة شؤون الشرطة | J106: 0
A107: صاحب محسن راضي كعيد | B107: 200 | C107: 150 | D107: 50 | E107: 5 | F107: حماية المنشأت | H107: تم التسديد | J107: 1
A108: خالد وليد عبدالله أنور | B108: 300 | C108: 300 | D108: 50 | E108: 6 | F108: الشرطة الاتحادية فق 1 ف 1 | J108: 0
A109: خالد وليد عبدالله أنور | B109: 600 | C109: 600 | D109: 100 | E109: 6 | F109: الشرطة الاتحادية فق 1 ف 1 | J109: 0
A110: رضا فرحان جعفر | B110: 3500 | C110: 3500 | D110: 350 | E110: 10 | F110: شؤن السيطرات | J110: 0
A111: سيف سعدي عبد جاسم | B111: 600 | C111: 600 | D111: 100 | E111: 6 | F111: مكتب الوزير التدقيق المركزي | J111: 0
A112: بشير عبدالله محمد خليل | B112: 10000 | C112: 10000 | D112: 500 | E112: 20 | F112: الشرطة الاتحادية فق 2 ل8 ف 2 | J112: 0
A113: محمد سعدي عبد الرسول نجم | B113: 600 | C113: 600 | D113: 100 | E113: 6 | F113: الشرطة الاتحادية فق 1 ل 8 ف 2 | J113: 0
A114: محمد سعدي عبد الرسول نجم | B114: 800 | C114: 800 | D114: 100 | E114: 8 | F114: الشرطة الاتحادية فق 1 ل 8 ف 2 | J114: 0
A115: حسين جبار لعيبي خلف | B115: 600 | C115: 600 | D115: 100 | E115: 6 | F115: حرس الحدود | J115: 0
A116: احمد حسين جلوب دلي | B116: 600 | C116: 600 | D116: 100 | E116: 6 | F116: الشرطة الاتحادية القيادة | J116: 0
A117: ناطق هاشم مهدي فهد | B117: 3000 | C117: 3000 | D117: 300 | E117: 10 | F117: الشرطة الاتحادية فق 1 | J117: 0
A118: فواز موفق شرقي رزوقي | B118: 180 | C118: 180 | D118: 45 | E118: 4 | F118: الشرطة الاتحادية اللواء الالي | J118: 0
A119: فواز موفق شرقي رزوقي | B119: 250 | C119: 250 | D119: 50 | E119: 5 | F119: الشرطة الاتحادية اللواء الالي | J119: 0
A120: صالح خلف حمود جليهم | B120: 450 | C120: 450 | D120: 90 | E120: 5 | F120: الشرطة الاتحادية قسم الميرة | J120: 0
A121: صاحب محسن راضي كعيد | B121: 332 | C121: 248 | D121: 84 | E121: 6 | F121: حماية المنشأت | H121: تم التسديد | J121: 1
A122: قاسم عبد الأمير كاظم عبدالله | B122: 2700 | C122: 2400 | D122: 300 | E122: 10 | F122: الشرطة الاتحادية كتيبة الراجمات | H122: تم التسديد | J122: 1
A123: محمود زرعود سلوم فرحان | B123: 3000 | C123: 3000 | D123: 300 | E123: 10 | F123: الشرطة الاتحادية فق 1 | J123: 0
A124: محمود زرعود سلوم فرحان | B124: 600 | C124: 600 | D124: 100 | E124: 6 | F124: الشرطة الاتحادية فق 1 | J124: 0
A125: حيدر كوطي ندى الدراجي | B125: 600 | C125: 600 | D125: 100 | E125: 6 | F125: مديرية الشرطة القضائية | J125: 0
A126: حيدر كوطي ندى الدراجي | B126: 800 | C126: 800 | D126: 100 | E126: 8 | F126: مديرية الشرطة القضائية | J126: 0
A127: حيدر كوطي ندى الدراجي | B127: 900 | C127: 900 | D127: 100 | E127: 9 | F127: مديرية الشرطة القضائية | J127: 0
A128: محمد جنيد معروف مرهون حسن | B128: 3500 | C128: 3500 | D128: 350 | E128: 10 | F128: الشرطة الاتحادية فق 1 ف3 | J128: 0
A129: محمد نصيف كرين لفتة | B129: 3500 | C129: 3500 | D129: 350 | E129: 10 | F129: الشرطة الاتحادية فق 1ل 2 ف 2 | J129: 0
A130: علي حسين محي رسن | B130: 3500 | C130: 3500 | D130: 350 | E130: 10 | F130: الشرطة الاتحادية فق1 ل 3 ف 3 | J130: 0
A131: مشتاق داوود سليمان مجيد | B131: 3500 | C131: 3500 | D131: 350 | E131: 10 | F131: حرس الحدود | J131: 0
A132: علي شرقي جبر حسن | B132: 1750 | C132: 1750 | D132: 175 | E132: 10 | F132: شؤون السيطرات | J132: 0
A133: مشتاق داوود سليمان مجيد | B133: 1750 | C133: 1750 | D133: 175 | E133: 10 | F133: حرس الحدود | J133: 0
A134: اياد سامي فياض حاتم | B134: 4500 | C134: 4500 | D134: 450 | E134: 10 | F134: فوج طوارئ بغداد | J134: 0
A135: محمد قاسم عبد الحسن مهدي | B135: 4500 | C135: 4500 | D135: 450 | E135: 10 | F135: فرقة التدخل السريع | J135: 0
A136: احمد مانع فلاح ايلوي | B136: 2700 | C136: 2700 | D136: 300 | E136: 9 | F136: فرقة التدخل السريع | J136: 0
A137: احمد مانع فلاح ايلوي | B137: 800 | C137: 800 | D137: 100 | E137: 8 | F137: فرقة التدخل السريع | J137: 0
A138: احمد مانع فلاح ايلوي | B138: 700 | C138: 700 | D138: 100 | E138: 7 | F138: فرقة التدخل السريع | J138: 0
A139: احمد مانع فلاح ايلوي | B139: 600 | C139: 600 | D139: 100 | E139: 6 | F139: فرقة التدخل السريع | J139: 0
A140: عباس شاكر كشكول عبد | B140: 2700 | C140: =B140-J140*D140 -> 2700 | D140: 300 | E140: 9 | F140: شرطة نفط الوسط | J140: =COUNTIF(H140:I140,"تم التسديد") -> 0
A141: عباس شاكر كشكول عبد | B141: 700 | C141: 700 | D141: 100 | E141: 7 | F141: شرطة نفط الوسط | J141: 0
A142: عباس شاكر كشكول عبد | B142: 800 | C142: 800 | D142: 100 | E142: 8 | F142: شرطة نفط الوسط | J142: 0
A143: حسين جبار لعيبي خلف | B143: 300 | C143: 300 | D143: 50 | E143: 6 | F143: حرس الحدود | J143: 0
A144: مسلم عقيل عبد دويج | B144: 900 | C144: 900 | D144: 100 | E144: 9 | F144: مكتب الوزير التدخل السريع | J144: 0
A145: ضياء عبد الكاظم محمد سلمان | B145: 600 | C145: 600 | D145: 100 | E145: 6 | F145: شرطة اتحادية مقر فق 2 | J145: 0
A146: ضياء عبد الكاظم محمد سلمان | B146: 300 | C146: 300 | D146: 50 | E146: 6 | F146: شرطة اتحادية مقر فق 2 | J146: 0
A147: ضياء عبد الكاظم محمد سلمان | B147: 180 | C147: 180 | D147: 45 | E147: 4 | F147: شرطة اتحادية مقر فق 2 | J147: 0
A148: علاوي عبود محمد لفتة | B148: 3500 | C148: 3500 | D148: 350 | E148: 10 | F148: فوج طوارئ بغداد | J148: 0
A149: كنعان نظام الدين عسكر | B149: 800 | C149: 800 | D149: 100 | E149: 8 | F149: مديرية التدقيق المركزي | J149: 0
A150: ضياء عبد الكاظم محمد سلمان | B150: 600 | C150: 600 | D150: 100 | E150: 6 | F150: شرطة اتحادية مقر فق 2 | J150: 0
A151: ضياء عبد الكاظم محمد سلمان | B151: 150 | C151: 150 | D151: 50 | E151: 6 | F151: شرطة اتحادية مقر فق 2 | J151: 0
A152: علاء عامر صالح محمد | B152: 300 | C152: 300 | D152: 50 | E152: 6 | F152: مديرية شرطة صلاح الدين | J152: 0
A153: احمد حسين جلوب دلي | B153: 1200 | C153: 1200 | D153: 200 | E153: 6 | F153: الشرطة الاتحادية القيادة | J153: 0
A154: مرتضى عبد الزهرة عبدالله شناوة | B154: 4500 | C154: 4500 | D154: 450 | E154: 10 | F154: شرطة اتحادية فق1 | J154: 0
A155: مرتضى عبد الزهرة عبدالله شناوة | B155: 300 | C155: 300 | D155: 50 | E155: 6 | F155: شرطة اتحادية فق1 | J155: 0
A156: سعد عزيز حمودي كاظم السعيدي | B156: 800 | C156: 800 | D156: 100 | E156: 8 | F156: مديرية شؤون السيطرات | J156: 0
A157: احمد سليم هاتو سلمان | B157: 3500 | C157: 3500 | D157: 350 | E157: 10 | F157: شرطة اتحادية البيجية | J157: 0
A158: نصر عبد الرزاق كرم ناصح | B158: 600 | C158: 600 | D158: 100 | E158: 6 | F158: شرطة اتحادية فق 3 | J158: 0
A159: عماد موحي حسن | B159: 800 | C159: 800 | D159: 100 | E159: 8 | F159: حماية المنشأت | J159: 0
A160: علي نجاح عبدالله علي | B160: 2400 | C160: 2400 | D160: 400 | E160: 6 | F160: شرطة اتحادية فق 4 | J160: 0
A161: عقيل لازم خلف ثامر | B161: 225 | C161: 175 | D161: 50 | E161: 6 | F161: حماية المنشأت | H161: تم التسديد | J161: 1
A162: فواز موفق شرقي رزوقي | B162: 600 | C162: 600 | D162: 100 | E162: 6 | F162: الشرطة الاتحادية اللواء الالي | J162: 0
A163: احمد جميل طارش اللامي | B163: 600 | C163: 600 | D163: 100 | E163: 6 | F163: مديرية الاتصالات | J163: 0
A164: عدنان كاظم حمزة حبيب | B164: 1200 | C164: 1200 | D164: 200 | E164: 6 | F164: شرطة اتحادية فق 1 المقر | J164: 0
A165: وسام علي إبراهيم حمود | B165: 450 | C165: 350 | D165: 100 | E165: 6 | F165: حماية المنشات والشخصيات | H165: تم التسديد | J165: 1
A166: مجدي عباس فاضل عباس | B166: 1200 | C166: 1200 | D166: 200 | E166: 6 | F166: الشرطة الاتحادية ل 3 ف3 | J166: 0
A167: هيثم جاسم محمد حسن | B167: 3000 | C167: 3000 | D167: 300 | E167: 10 | F167: الشرطة الاتحادية مديرية الرواتب | J167: 0
A168: حيدر رزوقي فرج محمد | B168: 700 | C168: 700 | D168: 100 | E168: 7 | F168: شرطة اتحادية فق 2 فوج المغاوير | J168: 0
A169: حيدر رزوقي فرج محمد | B169: 500 | C169: 500 | D169: 100 | E169: 5 | F169: شرطة اتحادية فق 2 فوج المغاوير | J169: 0
A170: حيدر رزوقي فرج محمد | B170: 300 | C170: 300 | D170: 50 | E170: 6 | F170: شرطة اتحادية فق 2 فوج المغاوير | J170: 0
A171: حيدر رزوقي فرج محمد | B171: 300 | C171: 300 | D171: 50 | E171: 6 | F171: شرطة اتحادية فق 2 فوج المغاوير | J171: 0
A172: زهير ناصر هادي كاظم | B172: 600 | C172: 600 | D172: 100 | E172: 6 | F172: شرطة اتحادية فوج المغاوير | J172: 0
A173: زهير ناصر هادي كاظم | B173: 180 | C173: 180 | D173: 45 | E173: 4 | F173: شرطة اتحادية فوج المغاوير | J173: 0
A174: رامي رزاق ضيدان جاسم | B174: 750 | C174: 650 | D174: 100 | E174: 9 | F174: حماية المنشأت | H174: تم التسديد | J174: 1
A175: رامي رزاق ضيدان جاسم | B175: 450 | C175: 350 | D175: 100 | E175: 6 | F175: حماية المنشأت | H175: تم التسديد | J175: 1
A176: رامي رزاق ضيدان جاسم | B176: 225 | C176: 175 | D176: 50 | E176: 6 | F176: حماية المنشأت | H176: تم التسديد | J176: 1
A177: رامي رزاق ضيدان جاسم | B177: 350 | C177: 250 | D177: 100 | E177: 5 | F177: حماية المنشأت | H177: تم التسديد | J177: 1
A178: حيدر محمد كاظم حسن العامري | B178: 600 | C178: 600 | D178: 100 | E178: 6 | F178: حماية المنشأت | J178: 0
A179: وليد خالد رشيد محمد | B179: 4500 | C179: 4500 | D179: 450 | E179: 10 | F179: شرطة اتحادية وحدة منتسبي الجرحى | J179: 0
A180: حسن موسى عبد المهدي | B180: 9000 | C180: 9000 | D180: 900 | E180: 10 | F180: شرطة بغداد | J180: 0
A181: طارق هاشم حميد سالم | B181: 250 | C181: 250 | D181: 50 | E181: 5 | F181: شرطة اتحادية مقر القيادة | J181: 0
A182: حسين ورود خزعل الساعدي | B182: 3500 | C182: 3500 | D182: 350 | E182: 10 | F182: شؤن السيطرات | J182: 0
A183: علي طه حميد عباس | B183: 1500 | C183: 1500 | D183: 150 | E183: 10 | F183: مدبربة شرطة بغداد | J183: 0
A184: فراس مصطفى كامل الربيعي | B184: 4500 | C184: 4500 | D184: 450 | E184: 10 | F184: فوج طوارئ بغداد | J184: 0
A185: محمد عبد القادر خماس | B185: 600 | C185: 600 | D185: 100 | E185: 6 | F185: شرطة اتحادية مقر القيادة | J185: 0
A186: علي عبود محمد علي | B186: 4500 | C186: 4500 | D186: 450 | E186: 10 | F186: شرطة اتحادية مقر الفرقة الأولى | J186: 0
A187: حسين علي عودة راشد | B187: 4500 | C187: 4500 | D187: 450 | E187: 10 | F187: شؤون السيطرات | J187: 0
A188: يوسف عبدالله حسن ناصر | B188: 300 | C188: 300 | D188: 50 | E188: 6 | F188: فرقة الرد السريع | J188: 0
A189: يوسف عبدالله حسن ناصر | B189: 60 | C189: 60 | D189: 30 | E189: 2 | F189: فرقة الرد السريع | J189: 0
A190: قصي صلال فالح موسى | B190: 3000 | C190: 3000 | D190: 300 | E190: 10 | F190: مديرية الاستخبارات | J190: 0
A191: قصي صلال فالح موسى | B191: 450 | C191: 450 | D191: 90 | E191: 5 | F191: مديرية الاستخبارات | J191: 0
A192: أسامة فرات طلب محمد | B192: 25 | C192: 25 | D192: 25 | E192: 1 | F192: حرس الحدود | J192: 0
A193: عمر هيثم بهاء الدين حسين | B193: 300 | C193: 200 | D193: 100 | E193: 4 | F193: مقر الفرقة الأولى الشرطة الاتحادية | H193: تم التسديد | J193: 1
A194: احمد عبد الزهرة احسان لازم | B194: 800 | C194: 800 | D194: 100 | E194: 8 | F194: شؤون السيطرات | J194: 0
A195: احمد عبد الزهرة احسان لازم | B195: 450 | C195: 450 | D195: 90 | E195: 5 | F195: شؤون السيطرات | J195: 0
A196: سارة علي ذياب صالح | B196: 650 | C196: 550 | D196: 100 | E196: 8 | F196: حماية المنشأت | H196: تم التسديد | J196: 1
A197: رامي رزاق ضيدان جاسم | B197: 125 | C197: 75 | D197: 50 | E197: 4 | F197: حماية المنشأت | H197: تم التسديد | J197: 1
A198: رامي رزاق ضيدان جاسم | B198: 650 | C198: 550 | D198: 100 | E198: 8 | F198: حماية المنشأت | H198: تم التسديد | J198: 1
A199: حسام حسين شوحي مطشر | B199: 500 | C199: 500 | D199: 100 | E199: 5 | F199: ف1 ل2 فق2 ش.أ | J199: 0
A200: حسام حسين شوحي مطشر | B200: 500 | C200: 500 | D200: 100 | E200: 5 | F200: ف1 ل2 فق2 ش.أ | J200: 0
A201: علاء ستار شاوي حمود | B201: 125 | C201: 25 | D201: 50 | E201: 5 | F201: شرطة النجدة | H201: تم التسديد | I201: تم التسديد | J201: 2
A202: عقيل ستار شاوي حمود الساعدي | B202: 100 | C202: 0 | D202: 50 | E202: 5 | F202: شرطة النجدة | H202: تم التسديد | I202: تم التسديد | J202: 2
A203: اوس خالد صالح سعيد | B203: 800 | C203: 800 | D203: 100 | E203: 8 | F203: الشرطة الاتحادية مديرية التدريب | J203: 0
A204: اوس خالد صالح سعيد | B204: 180 | C204: =B204-J204*D204 -> 180 | D204: 45 | E204: 4 | F204: الشرطة الاتحادية مديرية التدريب | J204: =COUNTIF(H204:I204,"تم التسديد") -> 0
A205: علي مهدي حسين لفتة | B205: 500 | C205: 500 | D205: 100 | E205: 5 | F205: قوات رد السريع | J205: 0
A206: صفاء حسين علوان حمود | B206: 800 | C206: 800 | D206: 100 | E206: 8 | F206: العاب الشرطة | J206: 0
A207: يعقوب جاسم هاشم حسن | B207: 1300 | C207: 1100 | D207: 200 | E207: 8 | F207: حماية المنشأت | H207: تم التسديد | J207: 1
... 1797 more rows
